[Event "Early-Titled-Tuesday-Blitz-September-26-2023"]
[Site "Chess.com"]
[Date "2023.09.26"]
[Round "1"]
[White "Lion-Al-Messi"]
[Black "rk12387"]
[Result "0-1"]
[WhiteElo "2676"]
[BlackElo "2404"]
[TimeControl "180+1"]
[EndTime "8:09:20 PDT"]
[Termination "rk12387 won by resignation"]

1. e4 {[%clk 0:03:00.9]} 1... c5 {[%clk 0:02:59.9]} 2. Nf3 {[%clk 0:03:00.6]}
2... d6 {[%clk 0:03:00.3]} 3. d4 {[%clk 0:02:58.4]} 3... cxd4 {[%clk 0:03:00.5]}
4. Nxd4 {[%clk 0:02:58]} 4... Nf6 {[%clk 0:03:01]} 5. Nc3 {[%clk 0:02:57.8]}
5... g6 {[%clk 0:03:00.8]} 6. Be2 {[%clk 0:02:55]} 6... Bg7 {[%clk 0:02:59]} 7.
O-O {[%clk 0:02:54.1]} 7... O-O {[%clk 0:02:58.4]} 8. Be3 {[%clk 0:02:53.9]}
8... Nc6 {[%clk 0:02:57.3]} 9. h3 {[%clk 0:02:52.3]} 9... d5 {[%clk 0:02:44.5]}
10. exd5 {[%clk 0:02:50.7]} 10... Nxd5 {[%clk 0:02:27.4]} 11. Nxd5 {[%clk
0:02:51.6]} 11... Nxd4 {[%clk 0:02:26.4]} 12. Bxd4 {[%clk 0:02:51.2]} 12... Qxd5
{[%clk 0:02:26.1]} 13. Bxg7 {[%clk 0:02:51.1]} 13... Qxd1 {[%clk 0:02:25.6]} 14.
Raxd1 {[%clk 0:02:52]} 14... Kxg7 {[%clk 0:02:26]} 15. Rfe1 {[%clk 0:02:52.8]}
15... Be6 {[%clk 0:01:54.7]} 16. Bf3 {[%clk 0:02:49.7]} 16... Rad8 {[%clk
0:01:48.3]} 17. Bxb7 {[%clk 0:02:47.3]} 17... Rxd1 {[%clk 0:01:46.3]} 18. Rxd1
{[%clk 0:02:48.2]} 18... Rb8 {[%clk 0:01:46.8]} 19. Bd5 {[%clk 0:02:41.6]} 19...
Bxd5 {[%clk 0:01:46.9]} 20. Rxd5 {[%clk 0:02:42.5]} 20... Rxb2 {[%clk
0:01:47.4]} 21. Ra5 {[%clk 0:02:43]} 21... Rxc2 {[%clk 0:01:47.1]} 22. Rxa7
{[%clk 0:02:43.1]} 22... Rc1+ {[%clk 0:01:44.6]} 23. Kh2 {[%clk 0:02:43.2]}
23... e6 {[%clk 0:01:45]} 24. g4 {[%clk 0:02:39]} 24... Rc2 {[%clk 0:01:36.4]}
25. Kg3 {[%clk 0:02:38.8]} 25... g5 {[%clk 0:01:35.5]} 26. a4 {[%clk 0:02:34.7]}
26... Ra2 {[%clk 0:01:35.9]} 27. a5 {[%clk 0:02:26.7]} 27... h6 {[%clk 0:01:36]}
28. a6 {[%clk 0:02:26.4]} 28... Ra4 {[%clk 0:01:35.3]} 29. Ra8 {[%clk
0:02:26.3]} 29... Ra1 {[%clk 0:01:31.6]} 30. Kf3 {[%clk 0:02:26.4]} 30... Ra3+
{[%clk 0:01:31.1]} 31. Kg2 {[%clk 0:02:23.5]} 31... Ra2 {[%clk 0:01:31.3]} 32.
Kg3 {[%clk 0:02:23.2]} 32... Ra4 {[%clk 0:01:30.5]} 33. a7 {[%clk 0:02:19.7]}
33... Ra1 {[%clk 0:01:30.5]} 34. Kf3 {[%clk 0:02:20]} 34... Ra3+ {[%clk
0:01:30.3]} 35. Ke4 {[%clk 0:02:20.3]} 35... Ra1 {[%clk 0:01:24.3]} 36. Kd4
{[%clk 0:02:19.3]} 36... Ra5 {[%clk 0:01:21.9]} 37. Kc4 {[%clk 0:02:18.8]} 37...
Ra1 {[%clk 0:01:22.7]} 38. Kb5 {[%clk 0:02:19]} 38... Rb1+ {[%clk 0:01:23.1]}
39. Kc6 {[%clk 0:02:18.3]} 39... Rc1+ {[%clk 0:01:23.5]} 40. Kb6 {[%clk
0:02:17.6]} 40... Rb1+ {[%clk 0:01:23.8]} 41. Kc7 {[%clk 0:02:17.9]} 41... Rc1+
{[%clk 0:01:24.6]} 42. Kd6 {[%clk 0:02:18.1]} 42... Ra1 {[%clk 0:01:19.3]} 43.
Ke7 {[%clk 0:02:18.1]} 43... Ra2 {[%clk 0:01:10.9]} 44. f3 {[%clk 0:02:16.8]}
44... Ra4 {[%clk 0:01:10.7]} 45. Ke8 {[%clk 0:02:16.2]} 45... Ra3 {[%clk
0:01:09.1]} 46. Kd7 {[%clk 0:02:08.1]} 46... Ra1 {[%clk 0:01:08.3]} 47. Kd6
{[%clk 0:02:08.1]} 47... Ra2 {[%clk 0:01:08]} 48. Ke5 {[%clk 0:02:07.8]} 48...
Ra5+ {[%clk 0:01:07.6]} 49. Ke4 {[%clk 0:02:07.6]} 49... Ra4+ {[%clk 0:01:07.9]}
50. Ke3 {[%clk 0:02:07.6]} 50... Ra1 {[%clk 0:01:08.1]} 51. Kf2 {[%clk
0:02:04.7]} 51... Ra2+ {[%clk 0:01:08.3]} 52. Kg3 {[%clk 0:02:04.8]} 52... Ra3
{[%clk 0:01:09.1]} 53. h4 {[%clk 0:02:04.4]} 53... Ra4 {[%clk 0:01:09.1]} 54.
Kg2 {[%clk 0:01:59]} 54... Ra2+ {[%clk 0:01:09.1]} 55. Kh3 {[%clk 0:01:59.4]}
55... Ra3 {[%clk 0:01:09.9]} 56. Kg3 {[%clk 0:01:59.4]} 56... Ra4 {[%clk
0:01:09.8]} 57. Kh3 {[%clk 0:01:29.3]} 57... Ra3 {[%clk 0:01:10.4]} 58. Kg2
{[%clk 0:01:29.6]} 58... Ra2+ {[%clk 0:01:10.8]} 59. Kf1 {[%clk 0:01:24]} 59...
Ra3 {[%clk 0:01:09.5]} 60. Ke2 {[%clk 0:01:23.9]} 60... Ra2+ {[%clk 0:01:09.3]}
61. Kd3 {[%clk 0:01:23.8]} 61... gxh4 {[%clk 0:01:09.9]} 62. Rb8 {[%clk
0:01:12.4]} 62... Rxa7 {[%clk 0:01:09.9]} 63. Rb1 {[%clk 0:01:12.9]} 63... Kg6
{[%clk 0:01:08.5]} 64. Ke3 {[%clk 0:01:11.3]} 64... e5 {[%clk 0:01:01.7]} 65.
Rb6+ {[%clk 0:00:43.7]} 65... f6 {[%clk 0:01:01.6]} 66. Rb8 {[%clk 0:00:44]}
66... Rg7 {[%clk 0:00:54.7]} 67. Kf2 {[%clk 0:00:38.7]} 67... Kg5 {[%clk
0:00:54.6]} 68. Kg2 {[%clk 0:00:38.5]} 68... h5 {[%clk 0:00:53.3]} 69. gxh5
{[%clk 0:00:32.5]} 69... Kxh5+ {[%clk 0:00:52.7]} 70. Kh2 {[%clk 0:00:33]} 70...
f5 {[%clk 0:00:50.6]} 71. Rf8 {[%clk 0:00:31.1]} 71... Kg5 {[%clk 0:00:49.9]}
72. Kh3 {[%clk 0:00:26.7]} 72... Rh7 {[%clk 0:00:43.4]} 73. Ra8 {[%clk
0:00:12.6]} 73... Kf4 {[%clk 0:00:41.8]} 74. Ra3 {[%clk 0:00:12.3]} 74... e4
{[%clk 0:00:41.3]} 75. fxe4 {[%clk 0:00:12.9]} 75... fxe4 {[%clk 0:00:41.5]} 76.
Ra8 {[%clk 0:00:13.1]} 76... Kf3 {[%clk 0:00:39]} 77. Rf8+ {[%clk 0:00:13.1]}
77... Ke2 {[%clk 0:00:39]} 78. Re8 {[%clk 0:00:13.1]} 78... e3 {[%clk
0:00:39.2]} 79. Re6 {[%clk 0:00:13.7]} 79... Kd2 {[%clk 0:00:38.6]} 80. Rd6+
{[%clk 0:00:14]} 80... Ke1 {[%clk 0:00:38.8]} 81. Re6 {[%clk 0:00:14.9]} 81...
e2 {[%clk 0:00:39]} 82. Re8 {[%clk 0:00:15.8]} 82... Rd7 {[%clk 0:00:35]} 83.
Ra8 {[%clk 0:00:14.6]} 83... Rf7 {[%clk 0:00:30.8]} 84. Kg2 {[%clk 0:00:04.8]}
84... h3+ {[%clk 0:00:30.6]} 85. Kg3 {[%clk 0:00:05.1]} 85... Kf1 {[%clk
0:00:26.1]} 86. Ra1+ {[%clk 0:00:03.7]} 0-1

[Event "Early-Titled-Tuesday-Blitz-September-26-2023"]
[Site "Chess.com"]
[Date "2023.09.26"]
[Round "1"]
[White "infinitegiantkiller"]
[Black "Willychess95"]
[Result "1-0"]
[WhiteElo "2451"]
[BlackElo "2722"]
[TimeControl "180+1"]
[EndTime "8:09:23 PDT"]
[Termination "infinitegiantkiller won by checkmate"]

1. d4 {[%clk 0:02:58.8]} 1... Nf6 {[%clk 0:02:55.6]} 2. c4 {[%clk 0:02:58.9]}
2... e6 {[%clk 0:02:56]} 3. Nf3 {[%clk 0:02:57.2]} 3... Bb4+ {[%clk 0:02:55.8]}
4. Bd2 {[%clk 0:02:56.6]} 4... a5 {[%clk 0:02:55.8]} 5. a3 {[%clk 0:02:56.4]}
5... Bxd2+ {[%clk 0:02:55.2]} 6. Qxd2 {[%clk 0:02:57.3]} 6... d5 {[%clk
0:02:54.9]} 7. e3 {[%clk 0:02:57]} 7... O-O {[%clk 0:02:54.1]} 8. Nc3 {[%clk
0:02:56.8]} 8... b6 {[%clk 0:02:52.5]} 9. Bd3 {[%clk 0:02:56.3]} 9... Bb7 {[%clk
0:02:51.1]} 10. cxd5 {[%clk 0:02:56.3]} 10... exd5 {[%clk 0:02:50.1]} 11. Ne5
{[%clk 0:02:55.1]} 11... Nbd7 {[%clk 0:02:49.1]} 12. f4 {[%clk 0:02:53.1]} 12...
Re8 {[%clk 0:02:47.2]} 13. O-O {[%clk 0:02:52.5]} 13... Ne4 {[%clk 0:02:22.1]}
14. Nxe4 {[%clk 0:02:45.2]} 14... dxe4 {[%clk 0:02:20.8]} 15. Bc4 {[%clk
0:02:45.2]} 15... Nf6 {[%clk 0:02:09.3]} 16. Bxf7+ {[%clk 0:02:10]} 16... Kh8
{[%clk 0:02:08.2]} 17. Bxe8 {[%clk 0:01:54.6]} 17... Qxe8 {[%clk 0:02:09.1]} 18.
Rac1 {[%clk 0:01:51.7]} 18... Nd5 {[%clk 0:02:07.8]} 19. Qf2 {[%clk 0:01:43.1]}
19... Kg8 {[%clk 0:01:53.8]} 20. Qg3 {[%clk 0:01:37.9]} 20... Qd8 {[%clk
0:01:45.9]} 21. Nc6 {[%clk 0:01:19]} 21... Qf6 {[%clk 0:01:39.2]} 22. Ne5 {[%clk
0:01:15.5]} 22... Re8 {[%clk 0:01:33.2]} 23. Rfe1 {[%clk 0:01:09.7]} 23... Qd6
{[%clk 0:01:27.9]} 24. Qh3 {[%clk 0:00:57.6]} 24... Bc8 {[%clk 0:01:24]} 25. Qh4
{[%clk 0:00:56.4]} 25... Bb7 {[%clk 0:01:21.1]} 26. Qf2 {[%clk 0:00:44.9]} 26...
Re7 {[%clk 0:01:12.1]} 27. Rc2 {[%clk 0:00:43.5]} 27... Qh6 {[%clk 0:00:57.1]}
28. Rec1 {[%clk 0:00:37.9]} 28... Qh5 {[%clk 0:00:56.4]} 29. Qe2 {[%clk
0:00:37]} 29... Qe8 {[%clk 0:00:50.9]} 30. Nc6 {[%clk 0:00:30.8]} 30... Rf7
{[%clk 0:00:41]} 31. b4 {[%clk 0:00:20.1]} 31... axb4 {[%clk 0:00:40.4]} 32.
Nxb4 {[%clk 0:00:19.5]} 32... Qd8 {[%clk 0:00:30.2]} 33. Nxd5 {[%clk 0:00:18.8]}
33... Bxd5 {[%clk 0:00:31.1]} 34. Qb5 {[%clk 0:00:13.8]} 34... c6 {[%clk
0:00:27.7]} 35. Qb4 {[%clk 0:00:12.8]} 35... h6 {[%clk 0:00:27.4]} 36. a4 {[%clk
0:00:08.3]} 36... g5 {[%clk 0:00:20.5]} 37. fxg5 {[%clk 0:00:04.8]} 37... Qxg5
{[%clk 0:00:21.4]} 38. Qd2 {[%clk 0:00:03.4]} 38... Rf3 {[%clk 0:00:17.9]} 39.
Re1 {[%clk 0:00:02.6]} 39... Rf6 {[%clk 0:00:17.2]} 40. Rf1 {[%clk 0:00:02.4]}
40... Rg6 {[%clk 0:00:14.8]} 41. Qf2 {[%clk 0:00:02.5]} 41... Kh7 {[%clk
0:00:14.2]} 42. Qe2 {[%clk 0:00:01.9]} 42... b5 {[%clk 0:00:13.2]} 43. axb5
{[%clk 0:00:01.6]} 43... cxb5 {[%clk 0:00:14.1]} 44. Qf2 {[%clk 0:00:02]} 44...
Bc4 {[%clk 0:00:13.1]} 45. Re1 {[%clk 0:00:01.9]} 45... Rf6 {[%clk 0:00:12.6]}
46. Qd2 {[%clk 0:00:01.5]} 46... Qg8 {[%clk 0:00:11.1]} 47. h3 {[%clk
0:00:01.8]} 47... Qg3 {[%clk 0:00:10.7]} 48. Kh1 {[%clk 0:00:01.6]} 48... Rf7
{[%clk 0:00:08.7]} 49. Rg1 {[%clk 0:00:01.9]} 49... Be6 {[%clk 0:00:07.8]} 50.
Qe1 {[%clk 0:00:02]} 50... Qg5 {[%clk 0:00:07.6]} 51. Rb2 {[%clk 0:00:01.9]}
51... Rg7 {[%clk 0:00:08.1]} 52. Rc2 {[%clk 0:00:01.6]} 52... Bf5 {[%clk
0:00:07.7]} 53. Rc5 {[%clk 0:00:01.6]} 53... b4 {[%clk 0:00:07.5]} 54. Qxb4
{[%clk 0:00:01.3]} 54... Qg6 {[%clk 0:00:08.1]} 55. Qe1 {[%clk 0:00:01.3]} 55...
Be6 {[%clk 0:00:08.2]} 56. Qf2 {[%clk 0:00:01.6]} 56... Rf7 {[%clk 0:00:08.2]}
57. Qh4 {[%clk 0:00:01.9]} 57... Rg7 {[%clk 0:00:06.8]} 58. Re5 {[%clk
0:00:01.9]} 58... Bc4 {[%clk 0:00:06.4]} 59. Qxe4 {[%clk 0:00:02.3]} 59... Qxe4
{[%clk 0:00:06.7]} 60. Rxe4 {[%clk 0:00:03.2]} 60... Bd3 {[%clk 0:00:07.5]} 61.
Rf4 {[%clk 0:00:03.9]} 61... Re7 {[%clk 0:00:07.7]} 62. Re1 {[%clk 0:00:04.5]}
62... Bg6 {[%clk 0:00:07.2]} 63. Kg1 {[%clk 0:00:04.8]} 63... h5 {[%clk
0:00:08.1]} 64. Kf2 {[%clk 0:00:05.1]} 64... Kh6 {[%clk 0:00:09]} 65. h4 {[%clk
0:00:05.5]} 65... Kg7 {[%clk 0:00:09.2]} 66. g3 {[%clk 0:00:05.9]} 66... Rc7
{[%clk 0:00:09.4]} 67. Re2 {[%clk 0:00:05.9]} 67... Be8 {[%clk 0:00:09.7]} 68.
Rd2 {[%clk 0:00:06.2]} 68... Bb5 {[%clk 0:00:10.2]} 69. d5 {[%clk 0:00:06.5]}
69... Rc1 {[%clk 0:00:10.7]} 70. e4 {[%clk 0:00:06]} 70... Kg6 {[%clk
0:00:10.3]} 71. Rf5 {[%clk 0:00:05.6]} 71... Bd7 {[%clk 0:00:09.6]} 72. Rg5+
{[%clk 0:00:05.7]} 72... Kh6 {[%clk 0:00:07.5]} 73. e5 {[%clk 0:00:06.1]} 73...
Bb5 {[%clk 0:00:07.4]} 74. d6 {[%clk 0:00:05.7]} 74... Rf1+ {[%clk 0:00:07.7]}
75. Ke3 {[%clk 0:00:05.9]} 75... Re1+ {[%clk 0:00:07.8]} 76. Kd4 {[%clk
0:00:06.3]} 76... Bc6 {[%clk 0:00:08]} 77. Kc5 {[%clk 0:00:05.8]} 77... Bd7
{[%clk 0:00:08.5]} 78. Kb6 {[%clk 0:00:05.1]} 78... Rc1 {[%clk 0:00:08.6]} 79.
Re2 {[%clk 0:00:03.6]} 79... Be6 {[%clk 0:00:07.3]} 80. d7 {[%clk 0:00:02.9]}
80... Bxd7 {[%clk 0:00:07.2]} 81. e6 {[%clk 0:00:03.5]} 81... Rc6+ {[%clk
0:00:07.1]} 82. Kb7 {[%clk 0:00:02.2]} 82... Rxe6 {[%clk 0:00:07.2]} 83. Rxe6+
{[%clk 0:00:02.4]} 83... Bxe6 {[%clk 0:00:08.1]} 84. Kc6 {[%clk 0:00:02.8]}
84... Ba2 {[%clk 0:00:08]} 85. Kd6 {[%clk 0:00:03.7]} 85... Bb3 {[%clk
0:00:08.2]} 86. Ke5 {[%clk 0:00:04.6]} 86... Bd1 {[%clk 0:00:08.7]} 87. Kf6
{[%clk 0:00:05.5]} 87... Be2 {[%clk 0:00:08.9]} 88. Rg6+ {[%clk 0:00:05.7]}
88... Kh7 {[%clk 0:00:09.4]} 89. Kg5 {[%clk 0:00:05.8]} 89... Bd1 {[%clk
0:00:09.3]} 90. Rh6+ {[%clk 0:00:06.1]} 90... Kg7 {[%clk 0:00:10.2]} 91. Rxh5
{[%clk 0:00:06.8]} 91... Bc2 {[%clk 0:00:09.9]} 92. Rh6 {[%clk 0:00:06.9]} 92...
Bb1 {[%clk 0:00:10.5]} 93. Rb6 {[%clk 0:00:07.5]} 93... Bd3 {[%clk 0:00:11.2]}
94. Rb7+ {[%clk 0:00:07.8]} 94... Kf8 {[%clk 0:00:10.8]} 95. Kf6 {[%clk
0:00:07.9]} 95... Be4 {[%clk 0:00:11.3]} 96. Rb8# {[%clk 0:00:07.9]} 1-0

[Event "Early-Titled-Tuesday-Blitz-September-26-2023"]
[Site "Chess.com"]
[Date "2023.09.26"]
[Round "1"]
[White "PattyCastillo"]
[Black "Misticpikachu"]
[Result "0-1"]
[WhiteElo "1883"]
[BlackElo "2533"]
[TimeControl "180+1"]
[EndTime "8:09:39 PDT"]
[Termination "Misticpikachu won by resignation"]

1. d4 {[%clk 0:03:00.4]} 1... d5 {[%clk 0:02:59.6]} 2. Nf3 {[%clk 0:02:58.1]}
2... e6 {[%clk 0:03:00.1]} 3. e3 {[%clk 0:02:52.7]} 3... Nf6 {[%clk 0:03:00.6]}
4. Bd3 {[%clk 0:02:52.3]} 4... Bd6 {[%clk 0:02:58]} 5. O-O {[%clk 0:02:52.2]}
5... O-O {[%clk 0:02:58.3]} 6. b3 {[%clk 0:02:50]} 6... Nbd7 {[%clk 0:02:57.9]}
7. Bb2 {[%clk 0:02:50.4]} 7... c6 {[%clk 0:02:58]} 8. Nbd2 {[%clk 0:02:51]} 8...
Qc7 {[%clk 0:02:57.2]} 9. c4 {[%clk 0:02:50.2]} 9... e5 {[%clk 0:02:52.7]} 10.
cxd5 {[%clk 0:02:48]} 10... Nxd5 {[%clk 0:02:53.6]} 11. Bc4 {[%clk 0:02:34.9]}
11... exd4 {[%clk 0:02:46.5]} 12. Nxd4 {[%clk 0:02:30.5]} 12... N7f6 {[%clk
0:02:26.8]} 13. N2f3 {[%clk 0:02:26.8]} 13... Bg4 {[%clk 0:02:24.4]} 14. h3
{[%clk 0:02:25.4]} 14... Bh5 {[%clk 0:02:24.6]} 15. Rc1 {[%clk 0:02:23.1]} 15...
Bg6 {[%clk 0:02:18.4]} 16. Bxd5 {[%clk 0:02:10.6]} 16... Nxd5 {[%clk 0:02:17.8]}
17. Nb5 {[%clk 0:02:10.3]} 17... Qe7 {[%clk 0:02:14.5]} 18. Nxd6 {[%clk
0:02:10.2]} 18... Qxd6 {[%clk 0:02:15.4]} 19. Ne5 {[%clk 0:01:57.6]} 19... Rad8
{[%clk 0:02:13.6]} 20. Nxg6 {[%clk 0:01:55.7]} 20... Qxg6 {[%clk 0:02:14.5]} 21.
Qe2 {[%clk 0:01:50.9]} 21... Nb4 {[%clk 0:02:13.2]} 22. Ba3 {[%clk 0:01:43.4]}
22... a5 {[%clk 0:01:56.1]} 23. Rfd1 {[%clk 0:01:38.9]} 23... h6 {[%clk
0:01:52.8]} 24. Bxb4 {[%clk 0:01:29.9]} 24... axb4 {[%clk 0:01:51.9]} 25. Qc4
{[%clk 0:01:30.6]} 25... Rxd1+ {[%clk 0:00:59.4]} 26. Rxd1 {[%clk 0:01:31.3]}
26... Ra8 {[%clk 0:00:59.8]} 27. Qxb4 {[%clk 0:01:14.1]} 27... Rxa2 {[%clk
0:00:58.4]} 28. Qxb7 {[%clk 0:01:06.6]} 28... Qf6 {[%clk 0:00:51.7]} 29. Rf1
{[%clk 0:01:03]} 29... Rc2 {[%clk 0:00:52]} 30. b4 {[%clk 0:00:57]} 30... Rb2
{[%clk 0:00:47.7]} 31. Qa8+ {[%clk 0:00:50.1]} 31... Kh7 {[%clk 0:00:46.1]} 32.
Qa3 {[%clk 0:00:48.9]} 32... g6 {[%clk 0:00:41.2]} 33. Qa4 {[%clk 0:00:30]}
33... Qc3 {[%clk 0:00:38.9]} 34. Qa7 {[%clk 0:00:26.2]} 34... Kg7 {[%clk
0:00:38.8]} 35. Qa1 {[%clk 0:00:22.5]} 35... Kh7 {[%clk 0:00:29.3]} 36. Qa7
{[%clk 0:00:21.4]} 36... Qf6 {[%clk 0:00:29.4]} 37. Qc5 {[%clk 0:00:20.2]} 37...
Kg7 {[%clk 0:00:24.1]} 38. e4 {[%clk 0:00:15.5]} 38... Re2 {[%clk 0:00:22.6]}
39. f3 {[%clk 0:00:14.3]} 39... Qb2 {[%clk 0:00:23.2]} 40. Rf2 {[%clk
0:00:11.3]} 40... Rxf2 {[%clk 0:00:22.5]} 41. Qxf2 {[%clk 0:00:11.2]} 41... Qxb4
{[%clk 0:00:22.9]} 42. Kh2 {[%clk 0:00:10.5]} 42... Qd6+ {[%clk 0:00:22.1]} 43.
Kg1 {[%clk 0:00:10.8]} 43... c5 {[%clk 0:00:22.5]} 44. Qb2+ {[%clk 0:00:10.5]}
44... Kh7 {[%clk 0:00:21.3]} 45. Qc3 {[%clk 0:00:11.2]} 45... Qc6 {[%clk
0:00:20.6]} 46. Qc4 {[%clk 0:00:11.4]} 46... Kg8 {[%clk 0:00:19.7]} 47. Kf2
{[%clk 0:00:12.3]} 47... Qb6 {[%clk 0:00:18.8]} 48. Ke3 {[%clk 0:00:12.2]} 48...
Qd6 {[%clk 0:00:17.7]} 49. f4 {[%clk 0:00:11.9]} 49... Qd1 {[%clk 0:00:15.1]}
50. e5 {[%clk 0:00:07.2]} 50... h5 {[%clk 0:00:09.6]} 51. e6 {[%clk 0:00:07]}
51... Qe1+ {[%clk 0:00:09.3]} 52. Kf3 {[%clk 0:00:07.5]} 52... Qxe6 {[%clk
0:00:06.9]} 53. Qxc5 {[%clk 0:00:07.9]} 53... Kh7 {[%clk 0:00:06]} 54. Qc3
{[%clk 0:00:07]} 54... Qd5+ {[%clk 0:00:06.2]} 55. Kf2 {[%clk 0:00:07.2]} 55...
Qe4 {[%clk 0:00:05.7]} 56. g3 {[%clk 0:00:06.7]} 56... Qh1 {[%clk 0:00:06.1]}
57. Qc7 {[%clk 0:00:06.5]} 57... Kg8 {[%clk 0:00:04.5]} 58. Qc8+ {[%clk
0:00:05.9]} 58... Kg7 {[%clk 0:00:04.5]} 59. Qc3+ {[%clk 0:00:06.3]} 59... Kh7
{[%clk 0:00:04.8]} 60. Qc7 {[%clk 0:00:05.8]} 60... Qd5 {[%clk 0:00:03.3]} 61.
g4 {[%clk 0:00:03.5]} 61... Qd2+ {[%clk 0:00:03.7]} 62. Kg3 {[%clk 0:00:02.5]}
62... Qe3+ {[%clk 0:00:03.8]} 63. Kg2 {[%clk 0:00:03.3]} 63... Qe6 {[%clk
0:00:01.9]} 64. gxh5 {[%clk 0:00:03.1]} 64... gxh5 {[%clk 0:00:02.8]} 65. f5
{[%clk 0:00:03.6]} 65... Qxf5 {[%clk 0:00:02.7]} 66. Qc6 {[%clk 0:00:03]} 66...
Qg6+ {[%clk 0:00:03.6]} 67. Qxg6+ {[%clk 0:00:03.6]} 67... Kxg6 {[%clk
0:00:03.8]} 68. Kg3 {[%clk 0:00:04.5]} 68... Kg5 {[%clk 0:00:04.4]} 69. h4+
{[%clk 0:00:05.3]} 69... Kf5 {[%clk 0:00:05]} 70. Kf3 {[%clk 0:00:05.9]} 70...
f6 {[%clk 0:00:05.3]} 71. Kg3 {[%clk 0:00:06.3]} 71... Ke4 {[%clk 0:00:05.6]}
72. Kf2 {[%clk 0:00:06.5]} 72... Kf4 {[%clk 0:00:06.5]} 73. Kg2 {[%clk
0:00:07.1]} 73... Kg4 {[%clk 0:00:07.4]} 74. Kh2 {[%clk 0:00:08]} 74... Kxh4
{[%clk 0:00:08.3]} 75. Kg2 {[%clk 0:00:08.9]} 75... Kg5 {[%clk 0:00:09.2]} 76.
Kf2 {[%clk 0:00:09.8]} 76... f5 {[%clk 0:00:10.1]} 77. Kg3 {[%clk 0:00:10.7]}
77... h4+ {[%clk 0:00:11]} 78. Kh3 {[%clk 0:00:11.6]} 78... Kh5 {[%clk
0:00:11.7]} 79. Kg2 {[%clk 0:00:11.5]} 79... Kg4 {[%clk 0:00:12.6]} 80. Kh2
{[%clk 0:00:12.4]} 80... f4 {[%clk 0:00:13.2]} 81. Kg2 {[%clk 0:00:13.1]} 81...
f3+ {[%clk 0:00:13.8]} 82. Kf2 {[%clk 0:00:14]} 82... Kf4 {[%clk 0:00:14.1]} 83.
Kg1 {[%clk 0:00:14.4]} 83... Kg3 {[%clk 0:00:14.3]} 84. Kh1 {[%clk 0:00:14.9]}
84... h3 {[%clk 0:00:14.1]} 85. Kg1 {[%clk 0:00:15.1]} 85... h2+ {[%clk
0:00:11.6]} 86. Kh1 {[%clk 0:00:14.8]} 86... Kf2 {[%clk 0:00:12]} 87. Kxh2
{[%clk 0:00:14.5]} 87... Ke2 {[%clk 0:00:12.6]} 88. Kg1 {[%clk 0:00:14.3]} 88...
f2+ {[%clk 0:00:13.4]} 89. Kg2 {[%clk 0:00:14.7]} 89... f1=Q+ {[%clk 0:00:14.3]}
90. Kg3 {[%clk 0:00:15.4]} 90... Qf3+ {[%clk 0:00:14.1]} 0-1